bitfinex/quotes_SOLUSD_20251119
["timestamp","ask_amount","ask_price","bid_price","bid_amount"]
[1763513089165,8.93929512,141.41,141.39,18.79096]
[1763513089558,8.93929512,141.4,141.35,0.67]
[1763513089761,8.93929512,141.36,141.35,0.67]
[1763513089955,8.93929512,141.36,141.35,4.89]
[1763513090178,8.93929512,141.37,141.35,4.89]
[1763513091372,8.93929512,141.37,141.36,4.22]
[1763513091576,8.93929512,141.38,141.36,4.89]
[1763513091976,8.93929512,141.38,141.37,0.67]
[1763513093268,8.93929512,141.38,141.36,4.22]
[1763513093477,8.93929512,141.37,141.36,4.89]
[1763513095767,8.93929512,141.38,141.36,4.89]
[1763513096367,0.1,141.43,141.37,0.67]
[1763513096589,8.93929512,141.38,141.37,0.67]
[1763513096763,8.93929512,141.39,141.37,0.67]
[1763513096963,8.93929512,141.38,141.36,4.22]
[1763513097469,8.93929512,141.38,141.36,4.89]
[1763513097668,8.93929512,141.38,141.36,4.22]
[1763513097972,8.93929512,141.38,141.36,4.89]
[1763513098975,8.93929512,141.37,141.36,4.89]
[1763513099173,8.93929512,141.37,141.36,4.22]
[1763513099677,8.93929512,141.37,141.34,0.67]
[1763513099983,0.1,141.37,141.36,4.22]
[1763513100189,0.1,141.39,141.36,4.22]
[1763513100501,0.1,141.42,141.34,4.22]
[1763513100700,0.1,141.42,141.33,4.22]
[1763513101060,8.93929512,141.34,141.33,4.22]
[1763513101383,8.93929512,141.34,141.29,0.67]
[1763513101584,0.1,141.34,141.3,4.22]
[1763513101895,8.93929512,141.31,141.3,4.22]
[1763513103705,8.93929512,141.31,141.28,18.12096]
[1763513103895,8.93929512,141.29,141.27,4.22]
[1763513104193,8.93929512,141.36,141.25,0.2]
[1763513104194,8.93929512,141.28,141.25,0.2]
[1763513104514,4.22,141.34,141.25,0.2]
[1763513104515,8.93929512,141.26,141.25,0.87]
[1763513104863,9.88882769,141.33,141.25,0.87]
[1763513104864,8.93929512,141.28,141.25,0.87]
[1763513105085,8.93929512,141.27,141.26,0.67]
[1763513105280,8.93929512,141.28,141.26,0.67]
[1763513105484,8.93929512,141.28,141.27,4.22]
[1763513106265,8.93929512,141.36,141.27,4.89]
[1763513106468,8.93929512,141.33,141.28,0.67]
[1763513106686,8.93929512,141.32,141.28,18.79096]
[1763513106876,8.93929512,141.29,141.27,22.34096]
[1763513107072,0.1,141.33,141.27,22.34096]
[1763513107293,8.93929512,141.29,141.27,23.01096]
[1763513107475,8.93929512,141.3,141.28,4.22]
[1763513107679,8.93929512,141.36,141.28,4.22]
[1763513107897,8.93929512,141.3,141.28,4.89]
[1763513108289,8.93929512,141.32,141.29,18.79096]
[1763513108474,0.1,141.37,141.29,18.79096]
[1763513108801,8.93929512,141.32,141.3,0.67]
[1763513109113,8.93929512,141.32,141.31,4.22]
[1763513109680,8.93929512,141.33,141.31,4.22]
[1763513110099,0.1,141.37,141.31,4.89]
[1763513110100,8.93929512,141.34,141.31,4.89]
[1763513110295,8.93929512,141.33,141.31,4.89]
[1763513110485,8.93929512,141.33,141.31,4.22]
[1763513110688,8.93929512,141.32,141.31,4.22]
[1763513111405,8.93929512,141.35,141.31,4.89]
[1763513111704,8.93929512,141.35,141.32,0.67]
[1763513111903,9.78882769,141.43,141.32,18.79096]
[1763513112104,8.93929512,141.38,141.33,27.06025512]
[1763513112280,8.93929512,141.38,141.34,4.93]
[1763513112688,8.93929512,141.38,141.35,0.71]
[1763513113508,8.93929512,141.39,141.35,0.71]
[1763513114008,8.93929512,141.37,141.35,0.71]
[1763513114222,8.93929512,141.36,141.3,8.93929512]
[1763513114379,9.88882769,141.43,141.3,8.93929512]
[1763513114380,8.93929512,141.32,141.3,18.12096]
[1763513114588,0.1,141.42,141.31,22.34096]
[1763513114813,5.35443391,141.33,141.31,22.34096]
[1763513114980,5.35443391,141.32,141.3,4.22]
[1763513115184,5.35443391,141.31,141.3,4.22]
[1763513115590,0.1,141.35,141.3,4.22]
[1763513115789,0.1,141.37,141.3,4.93]
[1763513116006,5.35443391,141.32,141.3,4.93]
[1763513116310,5.35443391,141.33,141.3,4.93]
[1763513116482,5.35443391,141.34,141.31,0.71]
[1763513117909,0.1,141.39,141.31,0.71]
[1763513118106,5.35443391,141.34,141.31,0.71]
[1763513119815,5.35443391,141.32,141.29,18.12096]
[1763513120015,5.35443391,141.3,141.28,0.71]
[1763513120222,5.35443391,141.3,141.29,4.22]
[1763513120400,5.35443391,141.3,141.25,0.91]
[1763513120603,5.35443391,141.26,141.25,0.2]
[1763513120803,5.35443391,141.26,141.25,4.42]
[1763513122920,5.35443391,141.26,141.25,5.09]
[1763513123109,5.35443391,141.26,141.25,4.42]
[1763513123296,5.35443391,141.26,141.25,0.2]
[1763513123623,0.1,141.34,141.25,28.56539391]
[1763513123915,4.22,141.4,141.25,28.56539391]
[1763513123916,5.35443391,141.31,141.26,5.35443391]
[1763513124102,5.35443391,141.32,141.28,18.12096]
[1763513124291,5.35443391,141.32,141.29,4.91]
[1763513124707,5.35443391,141.31,141.3,0.67]
[1763513126610,5.35443391,141.31,141.29,4.24]
[1763513126823,5.35443391,141.3,141.29,4.91]
[1763513127515,5.35443391,141.31,141.29,4.91]
[1763513127923,5.35443391,141.31,141.3,0.67]
[1763513128306,5.35443391,141.33,141.3,0.67]
[1763513129204,5.35443391,141.32,141.3,0.67]
[1763513129724,5.35443391,141.31,141.26,10.24443391]
[1763513129925,5.35443391,141.27,141.25,0.2]
[1763513130132,5.35443391,141.26,141.25,4.44]
[1763513130348,5.35443391,141.26,141.25,5.11]
[1763513130633,5.35443391,141.26,141.25,4.44]
[1763513131427,5.35443391,141.26,141.25,5.11]
[1763513132613,5.35443391,141.26,141.25,0.87]
[1763513132814,5.35443391,141.26,141.25,5.11]
[1763513133221,5.35443391,141.27,141.25,5.11]
[1763513133424,5.35443391,141.26,141.25,5.11]
[1763513133836,0.1,141.32,141.25,5.11]
[1763513134029,5.35443391,141.26,141.25,5.11]
[1763513134340,5.35443391,141.26,141.25,4.44]
[1763513134828,5.35443391,141.26,141.25,5.11]
[1763513136519,5.35443391,141.26,141.25,4.44]
[1763513136824,5.35443391,141.26,141.25,5.11]
[1763513138241,0.1,141.34,141.25,5.11]
[1763513138442,0.1,141.34,141.26,0.67]
[1763513138738,5.35443391,141.29,141.27,4.22]
[1763513139237,5.35443391,141.29,141.28,0.67]
[1763513139426,5.35443391,141.29,141.28,4.91]
[1763513139829,5.35443391,141.3,141.28,4.91]
[1763513140026,5.35443391,141.3,141.29,4.91]
[1763513141042,5.35443391,141.3,141.29,4.24]
[1763513141236,5.35443391,141.3,141.25,0.2]
[1763513141545,5.35443391,141.27,141.26,23.03096]
[1763513141747,5.35443391,141.28,141.26,23.03096]
[1763513141926,5.35443391,141.28,141.27,4.24]
[1763513142125,5.35443391,141.29,141.27,4.91]
[1763513142427,0.1,141.35,141.28,4.24]
[1763513142634,5.35443391,141.3,141.28,4.9]
[1763513143450,5.35443391,141.3,141.29,0.66]
[1763513144128,5.35443391,141.3,141.28,4.24]
[1763513144445,27.71539391,141.4,141.28,4.9]
[1763513144446,5.35443391,141.29,141.28,4.9]
[1763513145137,5.35443391,141.29,141.28,4.24]
[1763513145339,5.45443391,141.29,141.25,0.2]
[1763513145543,5.35443391,141.26,141.25,0.86]
[1763513145724,5.35443391,141.26,141.25,5.1]
[1763513146633,5.35443391,141.26,141.25,0.86]
[1763513146945,5.35443391,141.26,141.25,5.1]
[1763513147635,5.35443391,141.27,141.25,5.1]
[1763513148441,5.35443391,141.27,141.26,0.66]
[1763513148837,0.1,141.33,141.26,4.9]
[1763513149127,5.35443391,141.3,141.26,4.9]
[1763513149328,5.35443391,141.3,141.27,0.66]
[1763513149833,5.35443391,141.29,141.26,4.24]
[1763513150136,5.35443391,141.29,141.27,0.66]
[1763513151155,0.1,141.33,141.27,0.66]
[1763513151451,5.35443391,141.29,141.27,0.66]
[1763513153428,5.35443391,141.29,141.26,4.24]
[1763513153748,5.35443391,141.27,141.26,4.24]
[1763513156559,5.45443391,141.27,141.25,0.2]
[1763513156744,5.45443391,141.26,141.25,4.42]
[1763513157058,0.1,141.26,141.25,0.2]
[1763513157257,5.35443391,141.26,141.25,0.2]
[1763513157847,5.45443391,141.26,141.25,0.2]
[1763513158048,5.35443391,141.26,141.25,0.2]
[1763513161298,2.0,141.38,141.25,24.33539391]
[1763513161439,5.35443391,141.3,141.25,24.33539391]
[1763513161772,0.1,141.37,141.26,0.66]
[1763513161947,5.35443391,141.3,141.28,18.12096]
[1763513163054,0.1,141.33,141.28,18.12096]
[1763513163371,5.35443391,141.3,141.28,18.12096]
[1763513164386,0.1,141.36,141.29,0.66]
[1763513164568,0.1,141.36,141.3,4.22]
[1763513164778,5.35443391,141.33,141.3,4.22]
[1763513164977,5.35443391,141.35,141.31,18.78096]
[1763513165288,5.35443391,141.36,141.31,24.13539391]
[1763513165465,0.1,141.38,141.32,4.22]
[1763513165466,5.35443391,141.35,141.32,4.22]
[1763513165667,5.35443391,141.36,141.32,4.22]
[1763513165873,5.35443391,141.35,141.31,0.66]
[1763513166052,5.35443391,141.35,141.32,4.22]
[1763513166247,5.35443391,141.36,141.32,4.22]
[1763513166681,5.35443391,141.36,141.32,4.88]
[1763513166882,5.35443391,141.36,141.34,18.12096]
[1763513167088,0.1,141.38,141.35,18.12096]
[1763513167089,5.35443391,141.37,141.35,18.12096]
[1763513168469,0.1,141.41,141.35,18.78096]
[1763513168667,5.35443391,141.37,141.35,18.12096]
[1763513169073,0.1,141.39,141.33,4.88]
[1763513169279,5.35443391,141.38,141.34,4.88]
[1763513169595,0.2,141.44,141.36,5.35443391]
[1763513169769,5.35443391,141.42,141.37,9.57443391]
[1763513169968,0.1,141.44,141.39,5.35443391]
[1763513170176,0.1,141.44,141.43,18.12096]
[1763513170371,0.1,141.44,141.43,22.34096]
[1763513170579,0.1,141.44,141.43,23.00096]
[1763513170774,0.1,141.44,141.43,28.35539391]
[1763513170955,0.1,141.52,141.43,35.42602032]
[1763513171157,0.1,141.52,141.49,5.35443391]
[1763513171376,0.1,141.52,141.51,5.35443391]
[1763513171581,0.1,141.52,141.51,18.78096]
[1763513171890,0.1,141.52,141.47,18.12096]
[1763513172062,5.35443391,141.51,141.49,18.12096]
[1763513172258,5.35443391,141.53,141.5,4.22]
[1763513172489,5.35443391,141.51,141.5,4.22]
[1763513172691,5.35443391,141.51,141.44,0.69]
[1763513172990,5.35443391,141.49,141.47,18.12096]
[1763513173188,5.35443391,141.48,141.42,0.69]
[1763513173381,5.35443391,141.45,141.43,4.22]
[1763513173576,5.35443391,141.45,141.36,27.90978769]
[1763513173577,5.35443391,141.5,141.39,0.69]
[1763513173760,5.35443391,141.44,141.4,4.22]
[1763513174093,5.35443391,141.45,141.42,18.12096]
[1763513174258,0.1,141.48,141.43,4.22]
[1763513174459,5.35443391,141.46,141.41,5.35443391]
[1763513174660,5.35443391,141.45,141.41,0.69]
[1763513174859,8.93610994,141.45,141.42,4.22]
[1763513175102,8.93610994,141.44,141.42,4.22]
[1763513175265,8.93610994,141.43,141.41,18.12096]
[1763513175468,9.78882769,141.51,141.42,4.22]
[1763513175663,8.93610994,141.44,141.42,4.22]
[1763513175887,8.93610994,141.43,141.42,4.22]
[1763513176088,8.93610994,141.43,141.36,0.69]
[1763513176279,8.93610994,141.4,141.37,4.22]
[1763513176582,18.72493763,141.48,141.36,4.22]
[1763513176583,8.93610994,141.38,141.36,4.22]
[1763513176762,8.93610994,141.37,141.36,4.22]
[1763513176958,8.93610994,141.38,141.36,22.34096]
[1763513177188,8.93610994,141.37,141.36,4.22]
[1763513177378,8.93610994,141.37,141.35,4.22]
[1763513177566,8.93610994,141.36,141.31,0.69]
[1763513177767,8.93610994,141.34,141.32,4.22]
[1763513177975,0.1,141.38,141.33,4.22]
[1763513178161,8.93610994,141.35,141.33,4.22]
[1763513178360,8.93610994,141.34,141.33,4.22]
[1763513178983,8.93610994,141.35,141.33,4.22]
[1763513179283,0.1,141.38,141.31,0.69]
[1763513179284,8.93610994,141.34,141.31,0.69]
[1763513179491,0.1,141.38,141.31,0.69]
[1763513179492,8.93610994,141.35,141.33,4.22]
[1763513179786,8.93610994,141.34,141.33,4.22]
[1763513180192,8.93610994,141.34,141.32,4.22]
[1763513180500,8.93610994,141.35,141.32,22.34096]
[1763513181282,8.93610994,141.35,141.32,23.03096]
[1763513182310,0.1,141.41,141.33,0.67]
[1763513182479,8.93610994,141.38,141.33,27.72706994]
[1763513182799,9.88882769,141.43,141.34,4.22]
[1763513182800,8.93610994,141.37,141.34,4.22]
[1763513183103,8.93610994,141.36,141.34,4.22]
[1763513183394,8.93610994,141.35,141.33,4.24]
[1763513183589,8.93610994,141.34,141.33,4.24]
[1763513184108,8.93610994,141.36,141.33,4.91]
[1763513184390,8.93610994,141.35,141.33,4.24]
[1763513184767,8.93610994,141.35,141.32,18.12096]
[1763513184968,8.93610994,141.37,141.33,4.89]
[1763513185170,8.93610994,141.38,141.34,0.67]
[1763513185484,8.93610994,141.37,141.34,0.67]
[1763513185699,8.93610994,141.36,141.35,4.24]
[1763513185868,8.93610994,141.36,141.32,0.67]
[1763513186070,8.93610994,141.36,141.33,4.24]
[1763513186368,8.93610994,141.36,141.34,4.24]
[1763513186570,8.93610994,141.36,141.35,4.24]
[1763513186773,8.93610994,141.36,141.32,0.67]
[1763513187004,8.93610994,141.36,141.33,4.24]
[1763513187197,8.93610994,141.36,141.33,4.91]
[1763513187375,8.93610994,141.36,141.34,0.67]
[1763513187775,8.93610994,141.36,141.31,8.93610994]
[1763513187975,8.93610994,141.33,141.31,0.67]
[1763513188172,8.93610994,141.32,141.28,0.67]
[1763513188374,9.78882769,141.41,141.25,0.2]
[1763513188375,8.93610994,141.3,141.26,0.67]
[1763513188677,4.34,141.4,141.27,4.24]
[1763513188678,0.1,141.38,141.27,4.24]
[1763513188875,8.93610994,141.35,141.29,27.05706994]
[1763513189100,9.78882769,141.42,141.31,8.93610994]
[1763513189282,8.93610994,141.36,141.3,4.91]
[1763513189605,8.93610994,141.36,141.31,9.60610994]
[1763513190202,8.93610994,141.36,141.32,0.67]
[1763513190394,8.93610994,141.37,141.33,4.24]
[1763513190871,8.93610994,141.37,141.34,0.67]
[1763513191075,8.93610994,141.36,141.34,0.67]
[1763513191501,8.93610994,141.35,141.33,4.24]
[1763513191710,8.93610994,141.36,141.33,4.24]
[1763513191911,8.93610994,141.36,141.33,4.91]
[1763513192399,8.93610994,141.36,141.34,0.67]
[1763513192788,0.1,141.39,141.34,0.67]
[1763513193092,8.93610994,141.36,141.34,0.67]
[1763513193500,0.1,141.39,141.34,0.67]
[1763513193694,8.93610994,141.36,141.34,0.67]
[1763513194004,8.93610994,141.38,141.34,0.67]
[1763513194203,8.93610994,141.39,141.35,18.12096]
[1763513194402,8.93610994,141.38,141.36,4.24]
[1763513194579,8.93610994,141.39,141.36,4.91]
[1763513195181,8.93610994,141.38,141.36,4.24]
[1763513195380,0.1,141.42,141.36,4.24]
[1763513195596,8.93610994,141.38,141.36,4.24]
[1763513196306,8.93610994,141.38,141.36,4.91]
[1763513196501,8.93610994,141.37,141.36,4.24]
[1763513196711,0.1,141.42,141.36,4.24]
[1763513196712,8.93610994,141.38,141.36,4.24]
[1763513197188,8.93610994,141.38,141.36,4.91]
[1763513197388,8.93610994,141.37,141.36,4.24]
[1763513199611,8.93610994,141.37,141.35,4.24]
[1763513199910,8.93610994,141.36,141.33,4.24]
[1763513200213,8.93610994,141.34,141.33,4.24]
[1763513200513,8.93610994,141.34,141.31,0.67]
[1763513200710,0.1,141.37,141.32,4.24]
[1763513200711,8.93610994,141.33,141.32,4.24]
[1763513200892,8.93610994,141.33,141.31,18.12096]
[1763513201091,0.1,141.36,141.32,4.24]
[1763513201292,8.93610994,141.33,141.32,4.24]
[1763513201712,8.93610994,141.33,141.32,4.91]
[1763513202088,0.1,141.38,141.32,4.91]
[1763513202289,8.93610994,141.33,141.32,4.91]
[1763513202602,8.93610994,141.33,141.32,4.24]
[1763513203189,8.93610994,141.35,141.32,4.93]
[1763513203396,8.93610994,141.37,141.34,18.12096]
[1763513203602,8.93610994,141.37,141.35,4.24]
[1763513203791,8.93610994,141.37,141.36,4.24]
[1763513204204,8.93610994,141.37,141.35,18.12096]
[1763513204513,8.93610994,141.37,141.35,18.81096]
[1763513205517,8.93610994,141.36,141.32,0.69]
[1763513205696,8.93610994,141.34,141.32,0.69]
[1763513205888,8.93610994,141.33,141.31,4.24]
[1763513206083,9.78882769,141.39,141.31,4.24]
[1763513206084,8.93610994,141.32,141.31,4.24]
[1763513206399,8.93610994,141.33,141.31,23.05096]
[1763513206595,0.1,141.38,141.32,0.69]
[1763513206915,8.93610994,141.35,141.32,0.69]
[1763513207214,8.93610994,141.34,141.32,18.81096]
[1763513207410,9.78882769,141.42,141.33,0.69]
[1763513207411,8.93610994,141.35,141.33,0.69]
[1763513208225,8.93610994,141.36,141.34,4.24]
[1763513208424,8.93610994,141.36,141.34,22.36096]
[1763513208599,8.93610994,141.36,141.34,23.05096]
[1763513209296,8.93610994,141.35,141.31,0.69]
[1763513209614,8.93610994,141.34,141.32,4.24]
[1763513210120,8.93610994,141.34,141.33,0.69]
[1763513210313,8.93610994,141.34,141.32,4.24]
[1763513210513,8.93610994,141.33,141.32,4.24]
[1763513210719,0.1,141.36,141.32,4.24]
[1763513210903,8.93610994,141.33,141.32,4.24]
[1763513211611,0.1,141.39,141.32,4.93]
[1763513211820,8.93610994,141.36,141.33,0.69]
[1763513211999,8.93610994,141.37,141.33,0.69]
[1763513212518,8.93610994,141.38,141.33,27.74706994]
[1763513213020,8.93610994,141.38,141.34,0.69]
[1763513213220,8.93610994,141.38,141.35,4.24]
[1763513213398,8.93610994,141.37,141.35,4.24]
[1763513213718,8.93610994,141.36,141.35,22.36096]
[1763513214213,8.93610994,141.36,141.35,4.24]
[1763513214798,8.93610994,141.36,141.34,0.69]
[1763513214999,8.93610994,141.35,141.32,0.69]
[1763513215203,8.93610994,141.34,141.33,4.24]
[1763513215612,8.93610994,141.34,141.32,18.81096]
[1763513215810,8.93610994,141.33,141.32,4.24]
[1763513217221,8.93610994,141.34,141.32,4.24]
[1763513217422,8.93610994,141.33,141.32,4.24]
[1763513218034,0.1,141.39,141.32,23.05096]
[1763513218243,8.93610994,141.36,141.33,0.69]
[1763513218715,8.93610994,141.35,141.33,0.69]
[1763513219225,8.93610994,141.35,141.32,4.24]
[1763513219430,8.93610994,141.34,141.32,4.93]
[1763513219724,8.93610994,141.34,141.32,0.69]
[1763513219905,8.93610994,141.34,141.33,4.24]
[1763513220506,8.93610994,141.35,141.33,4.24]
[1763513220815,9.78882769,141.42,141.34,0.69]
[1763513221021,8.93610994,141.38,141.34,0.69]
[1763513222407,8.93610994,141.4,141.35,8.93610994]
[1763513222634,8.93610994,141.4,141.36,4.22]
[1763513222836,8.93610994,141.4,141.37,0.69]
[1763513223134,5.87629253,141.51,141.39,8.93610994]
[1763513223307,5.87629253,141.51,141.4,13.84610994]
[1763513223308,0.1,141.48,141.4,13.84610994]
[1763513223515,8.93610994,141.45,141.4,31.96706994]
[1763513223826,8.93610994,141.45,141.41,0.69]
[1763513224603,8.93610994,141.43,141.39,0.69]
[1763513224923,8.93610994,141.42,141.4,4.22]
[1763513225604,8.93610994,141.41,141.4,4.22]
[1763513225804,8.93610994,141.41,141.37,0.69]
[1763513226061,8.93610994,141.38,141.37,4.22]
[1763513226722,0.1,141.43,141.37,4.22]
[1763513227233,9.78882769,141.44,141.38,0.69]
[1763513227534,8.93610994,141.4,141.38,0.69]
[1763513227737,8.93610994,141.39,141.34,0.69]
[1763513228032,8.93610994,141.36,141.35,4.22]
[1763513228552,8.93610994,141.36,141.35,4.24]
[1763513229045,8.93610994,141.36,141.33,18.81096]
[1763513229239,8.93610994,141.35,141.33,23.05096]
[1763513229742,8.93610994,141.35,141.33,22.36096]
[1763513229928,2.0,141.45,141.33,22.36096]
[1763513229929,8.93610994,141.37,141.34,0.69]
[1763513231024,8.93610994,141.35,141.33,4.24]
[1763513231331,8.93610994,141.36,141.33,0.69]
[1763513231534,8.93610994,141.35,141.34,4.24]
[1763513232038,8.93610994,141.35,141.33,4.93]
[1763513232808,8.93610994,141.34,141.32,4.22]
[1763513233011,8.93610994,141.33,141.32,4.22]
[1763513233247,8.93610994,141.34,141.32,4.22]
[1763513233412,8.93610994,141.34,141.33,0.72]
[1763513234349,0.1,141.4,141.33,0.72]
[1763513234561,8.93610994,141.37,141.34,18.12096]
[1763513234717,9.00292022,141.42,141.33,0.72]
[1763513234718,8.93610994,141.38,141.35,4.24]
[1763513235254,8.93610994,141.38,141.36,0.72]
[1763513236129,8.93610994,141.37,141.34,4.24]
[1763513236338,8.93610994,141.35,141.34,4.24]
[1763513236538,0.1,141.38,141.34,4.24]
[1763513236737,8.93610994,141.35,141.34,4.24]
[1763513237041,5.3542493,141.35,141.34,4.24]
[1763513237429,5.3542493,141.35,141.34,4.22]
[1763513238817,0.1,141.38,141.34,4.22]
[1763513239041,5.3542493,141.35,141.34,4.22]
[1763513239242,9.78882769,141.4,141.34,4.22]
[1763513239439,5.3542493,141.5,141.35,0.72]
[1763513239440,0.1,141.43,141.35,0.72]
[1763513239744,5.3542493,141.39,141.35,0.72]
[1763513240326,5.3542493,141.38,141.35,0.72]
[1763513241446,5.3542493,141.37,141.29,0.70776417]
[1763513241758,5.3542493,141.39,141.34,5.3542493]
[1763513241923,5.3542493,141.4,141.35,9.5742493]
[1763513242125,5.3542493,141.4,141.36,4.24]
[1763513242331,5.3542493,141.4,141.36,4.91]
[1763513242623,5.3542493,141.4,141.37,0.67]
[1763513243030,5.3542493,141.39,141.37,0.67]
[1763513243622,5.3542493,141.39,141.37,4.89]
[1763513244033,5.3542493,141.39,141.38,0.67]
[1763513244720,5.3542493,141.43,141.38,6.0242493]
[1763513244939,5.3542493,141.46,141.41,5.3542493]
[1763513245160,5.3542493,141.47,141.42,9.5942493]
[1763513245347,5.3542493,141.47,141.43,0.67]
[1763513245521,5.3542493,141.49,141.44,5.3542493]
[1763513245721,5.3542493,141.5,141.45,9.5942493]
[1763513245922,5.3542493,141.49,141.45,4.24]
[1763513246115,9.78882769,141.55,141.45,0.67]
[1763513246116,5.3542493,141.48,141.45,0.67]
[1763513246341,5.3542493,141.48,141.46,4.91]
[1763513246952,5.3542493,141.48,141.47,0.67]
[1763513247661,5.3542493,141.48,141.43,5.3542493]
[1763513247830,0.1,141.48,141.44,4.24]
[1763513248026,5.3542493,141.45,141.44,4.24]
[1763513248437,5.3542493,141.46,141.44,4.91]
[1763513249133,5.3542493,141.46,141.44,0.67]
[1763513249346,5.3542493,141.45,141.43,4.22]
[1763513250353,0.1,141.51,141.44,0.67]
[1763513250550,5.3542493,141.47,141.44,0.67]
[1763513250752,5.3542493,141.48,141.44,0.67]
[1763513250968,5.3542493,141.47,141.44,0.67]
[1763513251571,5.3542493,141.46,141.44,4.22]
[1763513251727,5.3542493,141.48,141.45,0.67]
[1763513252832,9.78882769,141.53,141.45,6.0242493]
[1763513253129,5.3542493,141.5,141.45,6.0242493]
[1763513253350,9.88882769,141.53,141.46,0.67]
[1763513253650,5.3542493,141.51,141.46,6.0242493]
[1763513253965,5.3542493,141.53,141.48,5.3542493]
[1763513254162,5.3542493,141.53,141.49,4.22]
[1763513254341,5.3542493,141.53,141.5,0.67]
[1763513257044,5.3542493,141.54,141.5,0.67]
[1763513257651,0.1,141.61,141.51,5.3542493]
[1763513257853,0.1,141.61,141.52,5.3542493]
[1763513258056,5.3542493,141.58,141.53,9.5742493]
[1763513258365,5.3542493,141.57,141.53,4.89]
[1763513258666,5.3542493,141.57,141.54,0.67]
[1763513259368,5.3542493,141.56,141.54,0.67]
[1763513260069,5.3542493,141.56,141.51,5.3542493]
[1763513260243,0.1,141.57,141.52,0.67]
[1763513260449,0.1,141.57,141.52,4.89]
[1763513260645,0.1,141.58,141.52,4.89]
[1763513262370,0.1,141.58,141.51,0.66]
[1763513262572,0.1,141.58,141.51,4.88]
[1763513262948,5.3542493,141.54,141.51,4.88]
[1763513263160,5.3542493,141.54,141.51,0.66]
[1763513263358,5.3542493,141.54,141.5,4.22]
[1763513263565,5.3542493,141.51,141.48,0.66]
[1763513263782,0.1,141.54,141.48,4.88]
[1763513263968,5.3542493,141.51,141.48,4.88]
[1763513264365,5.3542493,141.51,141.49,0.66]
[1763513265193,5.3542493,141.51,141.48,4.22]
[1763513265482,5.3542493,141.5,141.48,4.22]
[1763513265975,5.3542493,141.5,141.48,4.88]
[1763513266187,5.3542493,141.5,141.46,4.88]
[1763513266588,5.3542493,141.5,141.47,0.66]
[1763513266797,5.3542493,141.49,141.46,4.88]
[1763513266981,5.3542493,141.48,141.46,4.22]
[1763513267272,5.3542493,141.48,141.45,4.22]
[1763513267878,5.3542493,141.47,141.45,4.22]
[1763513268269,5.3542493,141.47,141.45,4.88]
[1763513269971,5.3542493,141.47,141.45,0.66]
[1763513270279,5.3542493,141.46,141.42,0.66]
[1763513270577,5.3542493,141.45,141.42,0.66]
[1763513273582,5.3542493,141.5,141.37,0.66]
[1763513273583,5.3542493,141.43,141.37,0.66]
[1763513273795,5.3542493,141.4,141.37,0.66]
[1763513273980,0.1,141.44,141.37,0.66]
[1763513273981,5.3542493,141.39,141.37,0.66]
[1763513274279,5.3542493,141.38,141.35,0.66]
[1763513274479,0.1,141.41,141.35,0.66]
[1763513274480,5.3542493,141.36,141.35,0.66]
[1763513274657,5.3542493,141.38,141.35,0.66]
[1763513274860,5.3542493,141.37,141.35,0.66]
[1763513275060,5.3542493,141.37,141.34,4.22]
[1763513275061,5.3542493,141.36,141.34,4.22]
[1763513275260,5.3542493,141.35,141.34,4.22]
[1763513275988,5.3542493,141.35,141.32,4.22]
[1763513276584,5.3542493,141.35,141.32,4.88]